[Event "Sardinia World Festival-A 2024"]
[Site "Orosei"]
[Date "2024.04.30"]
[Round "4.34"]
[White "Krivenko, Dion"]
[Black "Carnicelli, Valerio"]
[Result "1-0"]
[ECO "B57"]
[WhiteElo "2254"]
[BlackElo "2413"]
[Annotator "RC"]
[PlyCount "119"]
[EventDate "2024.04.26"]
[EventType "swiss"]
[EventCountry "ITA"]
[SourceTitle "playchess.com"]
[Source "ChessBase"]
[SourceQuality "1"]
[TimeControl "40/5400+30:1800+30"]

1. e4 {[%emt 0:02:39]} c5 {[%emt 0:00:04]} 2. Nc3 {[%emt 0:00:08]} Nc6 {[%emt 0:00:08]} 3. Nge2 {[%emt 0:00:44]} d6 {[%emt 0:00:37]} 4. d4 {[%emt 0:03:43]} cxd4 {[%emt 0:00:16]} 5. Nxd4 {[%emt 0:00:05]} Nf6 {[%emt 0:00:08]} 6. Bc4 {[%emt 0:03:14]} Qb6 {[%emt 0:02:47]} 7. Nb3 {[%emt 0:01:10]} e6 {[%emt 0:00:13]} 8. Be3 {[%emt 0:00:49]} Qc7 {[%emt 0:01:37]} 9. Qe2 {[%emt 0:03:08]} a6 {[%emt 0:01:20]} 10. O-O-O {[%emt 0:00:48]} b5 {[%emt 0:08:20]} 11. Bd3 {[%emt 0:00:47]} Ne5 {[%emt 0:00:18]} 12. Kb1 {[%emt 0:08:24]} Bd7 {[%emt 0:02:49]} 13. Ka1 {[%emt 0:17:03]} Rc8 {[%emt 0:05:24]} 14. f4 {[%emt 0:02:43]} Nc4 {[%emt 0:00:10]} 15. Bc1 {[%emt 0:03:47]} b4 {[%emt 0:12:32]} 16. Nb1 {[%emt 0:01:56]} e5 {[%emt 0:06:06]} 17. f5 {[%emt 0:04:36]} h5 {[%emt 0:06:29]} 18. c3 {[%emt 0:07:20]} a5 {[%emt 0:06:30]} 19. cxb4 {[%emt 0:05:41]} axb4 {[%emt 0:01:39]} 20. Bg5 {[%emt 0:00:57]} Ba4 {[%emt 0:02:18]} 21. N1d2 {[%emt 0:02:50]} Nxd2 {[%emt 0:00:45]} 22. Rxd2 {[%emt 0:07:00]} Qb6 {[%emt 0:01:41]} 23. Rc2 {[%emt 0:08:56]} Ra8 {[%emt 0:00:17]} 24. Be3 {[%emt 0:04:30]} Qb8 {[%emt 0:03:53]} 25. Ba6 {[%emt 0:03:26]} Bd7 {[%emt 0:02:07]} 26. Rhc1 {[%emt 0:01:01]} Be7 {[%emt 0:02:02]} 27. Rc7 {[%emt 0:00:21]} O-O {[%emt 0:00:29]} 28. Rb7 {[%emt 0:01:28]} Qe8 {[%emt 0:01:06]} 29. Rcc7 {[%emt 0:01:09]} Rxa6 {[%emt 0:06:14]} 30. Qxa6 {[%emt 0:02:53]} Bc8 {[%emt 0:00:09]} 31. Qa7 {[%emt 0:01:15]} Bxb7 {[%emt 0:00:22]} 32. Qxb7 {[%emt 0:00:01]} Bd8 {[%emt 0:00:24]} 33. Rc4 {[%emt 0:00:30]} d5 {[%emt 0:00:45]} 34. exd5 {[%emt 0:00:49]} e4 {[%emt 0:00:33]} 35. Bc5 {[%emt 0:01:01]} e3 {[%emt 0:00:30]} 36. Bxf8 {[%emt 0:00:32]} Kxf8 {[%emt 0:00:14]} 37. Qxb4+ {[%emt 0:01:02]} Kg8 {[%emt 0:00:02]} 38. d6 {[%emt 0:00:27]} Kh7 {[%emt 0:02:09]} 39. Rc1 {[%emt 0:00:33]} Qe5 {[%emt 0:00:53]} 40. Qd4 {[%emt 0:00:21]} Qxh2 {[%emt 0:00:35]} 41. Qxe3 {[%emt 0:30:42]} Qxd6 {[%emt 0:34:58]} 42. Qd2 {[%emt 0:00:00]} Qb6 {[%emt 0:00:00]} 43. Qd4 {[%emt 0:00:00]} Qb8 {[%emt 0:00:00]} 44. Qc4 {[%emt 0:00:00]} Qb7 {[%emt 0:00:00]} 45. Nd4 {[%emt 0:00:00]} Bb6 {[%emt 0:00:00]} 46. Qc6 {[%emt 0:00:00]} Qb8 {[%emt 0:00:00]} 47. Nf3 {[%emt 0:00:00]} Be3 {[%emt 0:00:00]} 48. Qc7 {[%emt 0:00:00]} Qb5 {[%emt 0:00:00]} 49. Re1 {[%emt 0:00:00]} Bh6 {[%emt 0:00:00]} 50. Qxf7 {[%emt 0:00:00]} Qxf5 {[%emt 0:00:00]} 51. Qe6 {[%emt 0:00:00]} Qf4 {[%emt 0:00:00]} 52. Qe5 {[%emt 0:00:00]} Qg4 {[%emt 0:00:00]} 53. Qe2 {[%emt 0:00:00]} Qf5 {[%emt 0:00:00]} 54. Ne5 {[%emt 0:00:00]} g6 {[%emt 0:00:00]} 55. Qd3 {[%emt 0:00:00]} Qg5 {[%emt 0:00:00]} 56. Qc2 {[%emt 0:06:31]} Bg7 {[%emt 0:00:00]} 57. a4 {[%emt 0:00:36]} Qg3 {[%emt 0:00:00]} 58. Qxg6+ {[%emt 0:01:22]} Qxg6 {[%emt 0:00:00]} 59. Nxg6 {[%emt 0:00:01]} Kxg6 {[%emt 0:00:00]} 60. a5 {[%emt 0:00:12]} 1-0

[Event "Sardinia World Festival-A 2024"]
[Site "Orosei"]
[Date "2024.04.30"]
[Round "4.35"]
[White "Lumachi, Gabriele"]
[Black "Kalosha, Zhiulien Oleksii"]
[Result "1-0"]
[ECO "B40"]
[WhiteElo "2413"]
[BlackElo "2306"]
[Annotator "TA"]
[PlyCount "113"]
[EventDate "2024.04.26"]
[EventType "swiss"]
[EventCountry "ITA"]
[SourceTitle "playchess.com"]
[Source "ChessBase"]
[SourceQuality "1"]
[TimeControl "40/5400+30:1800+30"]

{[%evp 43,112,-88,-92,-129,-137,-141,-145,-148,-128,-132,-151,-138,-156,-141,-49,-52,-26,-28,-22,-22,0,-193,-110,-218,-208,-289,-258,-300,-293,-300,-300,-286,-300,-300,-293,-401,-276,-377,38,58,145,145,145,145,145,145,166,167,167,145,29955,29943,29964,29965,29964,29966,29969,29969,29970,29970,29970,29972,29972,29974,29973,29974,29974,29975,29978,29980,29980]} 1. e4 {[%emt 0:02:23]} c5 {[%emt 0:00:10]} 2. Nf3 {[%emt 0:00:11]} e6 {[%emt 0:00:14]} 3. d3 {[%emt 0:00:06]} Nc6 {[%emt 0:01:12]} 4. g3 {[%emt 0:00:13]} a6 {[%emt 0:00:51]} 5. Bg2 {[%emt 0:00:18]} b5 {[%emt 0:01:44]} 6. O-O {[%emt 0:00:20]} Bb7 {[%emt 0:00:33]} 7. a4 {[%emt 0:01:01]} Nf6 {[%emt 0:07:41]} 8. Nbd2 {[%emt 0:18:03]} Be7 {[%emt 0:04:52]} 9. Ng5 {[%emt 0:00:10]} d5 {[%emt 0:12:31]} 10. f4 {[%emt 0:04:33]} h6 {[%emt 0:05:17]} 11. Nh3 {[%emt 0:16:04]} c4 {[%emt 0:05:47]} 12. e5 {[%emt 0:03:38]} Nd7 {[%emt 0:00:50]} 13. Nf3 {[%emt 0:07:04]} Qb6+ {[%emt 0:03:48]} 14. d4 {[%emt 0:01:37]} O-O-O {[%emt 0:02:51]} 15. Be3 {[%emt 0:03:05]} Kb8 {[%emt 0:06:28]} 16. axb5 {[%emt 0:00:33]} axb5 {[%emt 0:03:49]} 17. c3 {[%emt 0:00:41]} g6 {[%emt 0:05:45]} 18. Qe2 {[%emt 0:00:21]} Kc7 {[%emt 0:00:32]} 19. g4 {[%emt 0:02:26]} h5 {[%emt 0:03:22]} 20. gxh5 {[%emt 0:00:33]} Rxh5 {[%emt 0:00:09]} 21. Nfg5 {[%emt 0:02:06]} Rdh8 {[%emt 0:04:38]} 22. f5 $2 {[%emt 0:10:03]} (22. Nxf7 Rxh3 23. Nxh8 Rxh8 $17) (22. Qf3 $16 {and life is bright.}) 22... gxf5 $17 {[%emt 0:04:35]} 23. Rxf5 {[%emt 0:01:10]} Rxh3 {[%emt 0:05:11]} 24. Nxh3 {[%emt 0:07:07]} exf5 {[%emt 0:00:16]} 25. Nf4 {[%emt 0:00:07]} Kc8 $1 {[%emt 0:08:19]} 26. Nxd5 {[%emt 0:01:35]} (26. Bxd5 $2 Bg5 27. Bf3 Ne7 $19) 26... Qd8 {[%emt 0:00:16]} 27. Bf4 {[%emt 0:00:36]} Nf8 {[%emt 0:06:10]} 28. Bg3 {[%emt 0:01:38]} Bh4 {[%emt 0:01:54]} (28... Ne6 $17 {Strongly threatening ...Kb8.} 29. Nxe7+ Nxe7) 29. Ne3 $1 $15 {[%emt 0:01:47]} Bxg3 {[%emt 0:00:49]} (29... f4 $5 30. Bxf4 Rg8 $17) 30. hxg3 {[%emt 0:00:02]} Qg5 {[%emt 0:03:00]} (30... Nxd4 $5 31. Qf2 f4 (31... Bxg2 $2 32. Qxg2 $18) 32. cxd4 Qxd4 (32... fxe3 33. Bxb7+ Kxb7 34. Qxf7+ Nd7 35. Qd5+ Kb6 36. Qe6+ Kb7 37. Qa6+ Kc7 38. Qxb5 $11) 33. Qxf4 Qb6 $17) 31. Qf3 {[%emt 0:01:12]} Nd8 {[%emt 0:01:21]} 32. d5 $2 {[%emt 0:08:35]} (32. Qxf5+ $6 Nfe6 33. Qxg5 Nxg5 $14) (32. Ra8+ $11 {and White has nothing to worry.} Bxa8 33. Qxa8+ Kd7 34. Nd5) 32... Nd7 {[%emt 0:00:50]} ({Black should play} 32... Ng6 $19 {Threatens to win with ...f4.} 33. Qxf5+ Qxf5 34. Nxf5 Kb8 (34... Nxe5 $2 35. Ra5 $19)) 33. Nxf5 {[%emt 0:00:23]} (33. Qf4 $17 Qe7 34. Ra5 Qxe5 (34... Nxe5 35. d6 $15) 35. Nxf5) 33... Nxe5 $19 {[%emt 0:00:25]} 34. Qf2 {[%emt 0:01:56]} Nd3 {[%emt 0:00:13]} 35. Qd4 {[%emt 0:01:58]} Qxf5 {[%emt 0:00:26]} 36. Qxh8 {[%emt 0:00:19] [#]} Qf2+ $1 {[%emt 0:00:03]} (36... Nxb2 $2 37. Bh3 $18) 37. Kh1 {[%emt 0:01:03]} Qxg3 {[%emt 0:01:12]} (37... Nxb2 38. Bh3+ f5 39. Qe5 Qf3+ 40. Kg1 $14) 38. Rf1 {[%emt 0:02:41]} Nf4 {[%emt 0:00:43]} (38... Nxb2 39. Rxf7 Qg5 40. Rg7 Qc1+ 41. Kh2 Qf4+ 42. Kh1 Qc1+ 43. Kh2 Qf4+ 44. Kh1 Qc1+ $11) 39. Be4 {[%emt 0:01:21]} Nxd5 {[%emt 0:00:37]} 40. Qh5 {[%emt 0:00:59]} Qd6 $2 {[%emt 0:00:31]} (40... Ne3 $19 41. Bxb7+ Nxb7) 41. Rd1 $14 {[%emt 0:03:53]} f5 {[%emt 0:28:04]} (41... Nf4 $1 $14 42. Qg4+ (42. Qxb5 {leads to mate.} Bxe4+ 43. Kh2 Nd3+) (42. Bxb7+ Kc7 $11) 42... Qe6 (42... f5 $2 43. Qxf5+ Qe6 44. Bxb7+ Kxb7 45. Qxf4 $18) 43. Bxb7+ (43. Qxf4 $2 Bxe4+ 44. Kh2 Nb7 $19) 43... Nxb7 44. Qxf4 Nc5) 42. Qxf5+ $16 {[%emt 0:01:27]} (42. Bxf5+ Kc7 43. Be4 Nf6 44. Rxd6 Bxe4+ (44... Nxh5 $2 45. Bxb7 Kxd6 46. Ba6 $19) 45. Kh2 Nxh5 $19) 42... Qe6 {[%emt 0:00:06]} 43. Qxe6+ {[%emt 0:01:15]} ({But not} 43. Rxd5 $6 Qxf5 44. Bxf5+ Kc7 $11) 43... Nxe6 {[%emt 0:00:04]} 44. Bxd5 {[%emt 0:00:07]} Nf4 {[%emt 0:00:04]} 45. Bxb7+ {[%emt 0:00:30]} Kxb7 {[%emt 0:00:04]} 46. Kh2 {[%emt 0:02:03]} Kb6 $2 {[%emt 0:01:21][%mdl 8192] [#]} (46... Kc6 $16 47. Kg3 Nd5) 47. Kg3 $1 {[%emt 0:01:47]} Nd3 {[%emt 0:00:25]} 48. b4 {[%emt 0:00:27]} Nb2 {[%emt 0:02:51]} 49. Rd2 {[%emt 0:01:40]} Na4 {[%emt 0:00:06]} 50. Rc2 {[%emt 0:00:06]} Kc6 {[%emt 0:00:04]} 51. Kf4 {[%emt 0:00:15]} Kd5 {[%emt 0:00:11]} 52. Kf5 {[%emt 0:08:14]} Kd6 {[%emt 0:00:28]} 53. Ke4 {[%emt 0:00:29]} Ke6 {[%emt 0:00:08]} 54. Kd4 {[%emt 0:00:10]} Kd6 {[%emt 0:00:48]} 55. Ra2 {[%emt 0:00:14]} Nb6 {[%emt 0:00:21]} 56. Ra6 {[%emt 0:00:22]} Kc6 {[%emt 0:00:08]} 57. Rxb6+ {[%emt 0:00:30]} 1-0

[Event "Sardinia World Festival-A 2024"]
[Site "Orosei"]
[Date "2024.04.30"]
[Round "4.36"]
[White "Favaloro, Andrea"]
[Black "Andreev, Konstantin"]
[Result "1/2-1/2"]
[ECO "B22"]
[WhiteElo "2412"]
[BlackElo "2244"]
[Annotator "TA"]
[PlyCount "52"]
[EventDate "2024.04.26"]
[EventType "swiss"]
[EventCountry "ITA"]
[SourceTitle "playchess.com"]
[Source "ChessBase"]
[SourceQuality "1"]
[TimeControl "40/5400+30:1800+30"]

{[%evp 13,52,14,52,28,21,34,65,35,31,16,37,33,19,32,16,27,16,0,0,0,0,0,0,-1,0,3,2,0,0,0,0,0,0,0,47,0,0,0,0,0,33]} 1. e4 {[%emt 0:00:28]} c5 {[%emt 0:02:40]} 2. Nf3 {[%emt 0:00:29]} e6 {[%emt 0:00:06]} 3. c3 {[%emt 0:00:23]} d5 {[%emt 0:00:09]} 4. exd5 {[%emt 0:00:15]} Qxd5 {[%emt 0:00:06]} 5. d4 {[%emt 0:00:18]} Nf6 {[%emt 0:00:05]} 6. Na3 {[%emt 0:00:22][%cal Bb1a3,Ba3b5,Bb5d4][%mdl 32]} cxd4 {[%emt 0:00:46]} 7. Nb5 {[%emt 0:00:45]} Qd8 {[%emt 0:00:04]} 8. Nbxd4 {[%emt 0:13:48]} ({Much worse is} 8. Nfxd4 a6 9. Na3 e5 $15) 8... a6 {[%emt 0:01:19]} 9. Bf4 {[%emt 0:04:25]} Nd5 {[%emt 0:01:01]} 10. Be5 {[%emt 0:02:58] White is more active. White is slightly better.} Nd7 {[%emt 0:02:06]} 11. Bg3 {[%emt 0:00:30]} b5 {[%emt 0:08:25] Wards off Bc4} 12. Bd3 {[%emt 0:02:06]} Bb7 {[%emt 0:01:38]} 13. Qe2 {[%emt 0:01:26]} Be7 {[%emt 0:08:16]} 14. O-O {[%emt 0:00:33]} O-O {[%emt 0:00:36]} 15. Rad1 {[%emt 0:04:58]} Qb6 {[%emt 0:01:33]} 16. Rfe1 {[%emt 0:08:29]} Rfe8 {[%emt 0:03:06]} 17. Ne5 {[%emt 0:03:21]} Nxe5 {[%emt 0:00:39]} 18. Bxe5 {[%emt 0:00:11]} Nf6 {[%emt 0:05:14]} 19. Bc2 {[%emt 0:04:14]} Rad8 {[%emt 0:03:47]} 20. Qd3 {[%emt 0:04:23] [#] aiming for Bxf6.} g6 {[%emt 0:00:09]} 21. Qg3 {[%emt 0:01:35]} Bd6 {[%emt 0:08:19]} 22. Qg5 {[%emt 0:13:42]} Bxe5 {[%emt 0:02:00]} 23. Qxe5 {[%emt 0:00:07]} Nd5 {[%emt 0:04:41]} (23... Ng4 $11 24. Qg5 e5) 24. h4 {[%emt 0:32:44]} (24. a4 $1 $14) 24... Qd6 $11 {The position is equal.} 25. Qxd6 Rxd6 26. a4 {[%emt 0:01:00]} b4 {[%emt 0:46:45] Weighted Error Value: White=0.07 (flawless) /Black=0.07 (flawless) .  Mistake:       	White=1     	Black=1      Inaccurate:     	White=1     	Black=2      OK:         	White=7     	Black=10     Best:        	---       	Black=1} 1/2-1/2

[Event "Sardinia World Festival-A 2024"]
[Site "Orosei"]
[Date "2024.04.30"]
[Round "4.37"]
[White "Kochavi, Ori"]
[Black "Loftgaard, Mikkel Vinh"]
[Result "0-1"]
[ECO "D02"]
[WhiteElo "2406"]
[BlackElo "2227"]
[Annotator "TA"]
[PlyCount "98"]
[EventDate "2024.04.26"]
[EventType "swiss"]
[EventCountry "ITA"]
[SourceTitle "playchess.com"]
[Source "ChessBase"]
[SourceQuality "1"]
[TimeControl "40/5400+30:1800+30"]

{[%evp 11,98,0,20,26,11,16,18,16,7,29,0,6,0,0,0,0,33,0,9,-59,-56,-64,0,0,0,0,0,0,0,-19,-22,-21,-19,-116,-125,-118,-112,-110,-125,-109,-101,-162,-170,-185,-203,-182,-141,-223,-220,-224,-230,-235,-157,-152,0,-209,-95,-100,-90,-91,-104,-117,-80,-74,-74,-160,-85,-85,-73,-66,-31,-26,-15,-15,-15,-118,-14,-17,-22,-787,-814,-1835,-1667,-3021,-2746,-4618,-4134,-29986,-29987]} 1. d4 {[%emt 0:00:23]} Nf6 {[%emt 0:01:02]} 2. Nf3 {[%emt 0:00:23]} d5 {[%emt 0:00:28]} 3. Bf4 {[%emt 0:02:09]} e6 {[%emt 0:01:19]} 4. e3 {[%emt 0:01:06]} c5 {[%emt 0:01:13]} 5. Nbd2 {[%emt 0:01:41]} Nc6 {[%emt 0:01:11]} 6. c3 {[%emt 0:00:15]} cxd4 {[%emt 0:00:16]} 7. exd4 {[%emt 0:00:11]} Nh5 {[%emt 0:00:07]} 8. Be3 {[%emt 0:00:03]} Bd6 {[%emt 0:00:10] [#]} 9. Ne5 $1 {[%emt 0:00:11] The position is equal.} g6 {[%emt 0:00:32][%cal Bg7g6,Bg6h5,Bh5g4,Bg4f3][%mdl 32]} 10. g4 {[%emt 0:06:08]} Ng7 {[%emt 0:00:48]} 11. h4 {[%emt 0:00:14]} Nxe5 {[%emt 0:12:24]} 12. dxe5 {[%emt 0:01:39]} Bxe5 {[%emt 0:00:10]} 13. Nf3 {[%emt 0:08:20]} Bd6 {[%emt 0:03:05]} 14. h5 {[%emt 0:07:45]} gxh5 {[%emt 0:02:12]} 15. Bb5+ {[%emt 0:00:13]} (15. Qd4 $11 f6 16. Nh4) 15... Bd7 $15 {[%emt 0:02:06]} 16. Qd4 {[%emt 0:04:42]} Rg8 {[%emt 0:13:40]} (16... f6 $15 17. Bxd7+ Qxd7) 17. Bd3 $11 {[%emt 0:03:43]} ({Avoid the trap} 17. Bg5 $2 Qb6 18. Bxd7+ Kxd7 $17) 17... hxg4 {[%emt 0:01:47]} 18. Bxh7 {[%emt 0:15:03]} Nf5 {[%emt 0:00:44]} 19. Bxf5 {[%emt 0:00:07]} gxf3 {[%emt 0:09:08]} 20. Rh8 {[%emt 0:01:53]} (20. Bh7 $5 Rf8 (20... e5 $2 21. Qxd5 Bc6 22. Qc4 $18) 21. O-O-O $11) 20... Rf8 {[%emt 0:04:41]} 21. Bd3 {[%emt 0:25:00]} Bc6 {[%emt 0:43:57]} 22. O-O-O {[%emt 0:03:23]} (22. Rxf8+ $1 $11 {keeps the balance.} Bxf8 23. O-O-O) 22... Rxh8 $1 $17 {[%emt 0:00:00]} ({Wrong is} 22... e5 $2 23. Rxf8+ Kxf8 24. Qg4 $16) 23. Qxh8+ {[%emt 0:00:05]} Kd7 {[%emt 0:00:00]} 24. Qg7 {[%emt 0:01:23] [#]} Qf8 $1 {[%emt 0:00:00]} 25. Qh7 {[%emt 0:01:36]} Qg8 {[%emt 0:00:00] Against Bg6} 26. Qh1 {[%emt 0:00:04]} (26. Rh1 $17 {was called for.}) 26... Qg7 $19 {[%emt 0:00:00]} 27. Bd4 {[%emt 0:03:06]} e5 {[%emt 0:00:00]} 28. Be3 {[%emt 0:00:04]} Qf6 {[%emt 0:00:00]} 29. Qh3+ {[%emt 0:01:10]} (29. Bc2 $17) 29... Kc7 {[%emt 0:00:00]} 30. Bc2 {[%emt 0:01:00]} Rh8 {[%emt 0:00:00]} 31. Qg4 {[%emt 0:00:08]} Bd7 {[%emt 0:00:00]} 32. Qg1 {[%emt 0:00:13]} Bc6 $2 {[%emt 0:00:00]} ({Better is} 32... Qe6 $17 {Hoping for ...Bc6.} 33. Qg7 Rh2) 33. Bb3 $2 {[%emt 0:00:06]} (33. Qg4 $1 $11) 33... Qg6 {[%emt 0:00:00]} (33... Qe6 $19 {Strongly threatening ...b6.} 34. Qf1 Be7) 34. Qxg6 $17 {[%emt 0:01:38]} fxg6 {[%emt 0:00:00]} 35. Bxd5 {[%emt 0:00:08]} Bxd5 {[%emt 0:00:00]} 36. Rxd5 {[%emt 0:00:06][%cal Od5d1][%mdl 4096] Endgame. KRB-KRB} Rh1+ {[%emt 0:00:00]} 37. Kd2 {[%emt 0:00:40][%cal Od5a5]} Kc6 {[%emt 0:00:00]} 38. Ra5 {[%emt 0:00:04] [#]} (38. c4 $142) 38... a6 {[%emt 0:00:00]} ({Black should play} 38... Rg1 $1 39. Kd3 g5) 39. Ra4 {[%emt 0:00:03]} Rg1 {[%emt 0:00:00] Dodges Rg4. Black is more active.} 40. Rh4 {[%emt 0:00:09]} g5 {[%emt 0:00:00]} 41. Rh6 {[%emt 0:30:33]} b5 {[%emt 0:31:58]} 42. b3 $1 {[%emt 0:00:32]} e4 {[%emt 0:04:44]} 43. c4 {[%emt 0:01:27]} (43. Rg6 $1 $11) 43... bxc4 {[%emt 0:01:18]} (43... Kd7 $17 {And now ...Bf4 would win.} 44. Rh7+ Kd8 45. Rh8+ Ke7 46. Rh7+ Kf6 47. Rh6+ Ke7 48. Rh7+ Ke6) 44. bxc4 $11 {[%emt 0:00:04]} Kd7 {[%emt 0:00:16] ...Bf4 is the strong threat.} 45. c5 $2 {[%emt 0:02:24][%mdl 8192] Now White is beyond hope.} (45. Rh7+ $11 Ke6 46. c5) 45... Bf4 $19 {[%emt 0:01:10] aiming for ...Bxe3+.} 46. Rxa6 {[%emt 0:05:21]} Rf1 {[%emt 0:00:00]} 47. Bxf4 {[%emt 0:00:00]} gxf4 {[%emt 0:00:00]} 48. Rf6 {[%emt 0:00:00]} Rxf2+ {[%emt 0:00:00]} 49. Kd1 {[%emt 0:00:00]} e3 {[%emt 0:04:34] Weighted Error Value: White=0.73/Black=0.20 (precise) .  Loses game:     	White=2     	---        Mistake:       	White=6     	Black=5      Inaccurate:     	White=1     	Black=4      OK:         	White=14    	Black=15     Best:        	White=3     	Black=4      Strong:       	White=1     	Black=2} 0-1

[Event "Sardinia World Festival-A 2024"]
[Site "Orosei"]
[Date "2024.04.30"]
[Round "4.38"]
[White "Balabayeva, Xeniya"]
[Black "Di Benedetto, Edoardo"]
[Result "0-1"]
[ECO "D00"]
[WhiteElo "2248"]
[BlackElo "2400"]
[Annotator "TA"]
[PlyCount "74"]
[EventDate "2024.04.26"]
[EventType "swiss"]
[EventCountry "ITA"]
[SourceTitle "playchess.com"]
[Source "ChessBase"]
[SourceQuality "1"]
[TimeControl "40/5400+30:1800+30"]

{[%evp 9,74,13,16,18,12,3,38,-13,-16,6,0,-2,8,0,0,-35,-50,-52,-50,-53,10,-42,-38,-55,-69,-68,-66,-113,-123,-118,-115,-137,-141,-300,-302,-505,-495,-504,-478,-477,-480,-478,-459,-475,-467,-585,-576,-649,-637,-645,-631,-981,-838,-972,-783,-989,-971,-858,-983,-994,-980,-758,-703,-1039,-975,-1123,-1123]} 1. d4 {[%emt 0:00:04]} d5 {[%emt 0:00:32]} 2. Bf4 {[%emt 0:00:16]} Nf6 {[%emt 0:00:10]} 3. e3 {[%emt 0:00:08]} c5 {[%emt 0:00:07]} 4. dxc5 {[%emt 0:00:28]} e6 {[%emt 0:07:21]} 5. b4 {[%emt 0:00:22]} Be7 {[%emt 0:01:12]} 6. c3 {[%emt 0:03:22]} a5 {[%emt 0:05:01]} 7. Nd2 {[%emt 0:05:21]} Nc6 {[%emt 0:03:00]} 8. Bb5 {[%emt 0:16:17]} (8. a3 $14) 8... O-O $11 {[%emt 0:00:32]} 9. Bxc6 {[%emt 0:13:50]} bxc6 {[%emt 0:00:06]} 10. Ne2 {[%emt 0:00:03]} Ba6 {[%emt 0:01:22]} 11. O-O {[%emt 0:04:56][%cal Oe2d4]} Nd7 {[%emt 0:03:26]} 12. a4 {[%emt 0:06:17]} Bf6 {[%emt 0:10:20] Inhibits Nd4. Strongly threatening ...axb4.} 13. Ra3 {[%emt 0:07:39]} e5 {[%emt 0:00:46]} 14. Bg3 {[%emt 0:01:08] [#]} d4 {[%emt 0:01:17]} 15. Ne4 {[%emt 0:13:25]} (15. exd4 $11 exd4 16. b5 (16. cxd4 axb4 17. Re3 Bg5 $17) 16... dxc3 17. bxa6 (17. Nxc3 cxb5 18. axb5 Bxc3 $14) 17... cxd2 18. Bd6) 15... dxc3 $15 {[%emt 0:00:50]} 16. b5 {[%emt 0:01:54]} cxb5 {[%emt 0:00:43]} 17. axb5 {[%emt 0:01:08]} Bxb5 {[%emt 0:00:42][%cal Od7c5] And now ...Nxc5! would win.} 18. Qc2 {[%emt 0:06:12] [#]} (18. Rxc3 $15 Nxc5 19. Rxc5 Qxd1 20. Rxd1 Bxe2 21. Rd2) 18... Nxc5 $1 $17 {[%emt 0:04:22][%mdl 512]} 19. Nxc5 {[%emt 0:00:11]} Qd2 {[%emt 0:00:13] Against Rc1} 20. Qxc3 {[%emt 0:03:59]} Qxe2 $40 {[%emt 0:00:48][%mdl 128] Black attacks with force.} 21. Re1 {[%emt 0:00:35] [#] Now White is beyond hope.} (21. Rb1 $17) 21... e4 $1 $19 {[%emt 0:01:56][%mdl 512]} 22. Qc1 {[%emt 0:01:49] [#]} (22. Nxe4 Bxc3 23. Rxe2) (22. Rxe2 Bxc3) 22... Bb2 $1 {[%emt 0:01:59] A strong pair of Bishops. White is weak on the light squares. Black is clearly winning.} 23. Qb1 {[%emt 0:00:05]} Bxa3 {[%emt 0:00:32]} 24. Rxe2 {[%emt 0:00:11]} Bxe2 {[%emt 0:00:07]} 25. Qa2 {[%emt 0:04:08]} Bxc5 {[%emt 0:01:35]} 26. Qxe2 {[%emt 0:00:07]} Rfc8 {[%emt 0:01:08]} 27. h4 {[%emt 0:01:20]} a4 {[%emt 0:00:58]} 28. Be5 {[%emt 0:00:17]} a3 {[%emt 0:01:58] ...a2 would now be deadly.} 29. Qa2 {[%emt 0:00:40]} Be7 {[%emt 0:02:34]} 30. h5 {[%emt 0:02:50]} Rc1+ {[%emt 0:01:20]} 31. Kh2 {[%emt 0:00:07]} Rc5 {[%emt 0:00:05]} 32. Bd4 {[%emt 0:01:06]} Rxh5+ {[%emt 0:00:09]} 33. Kg3 {[%emt 0:00:11]} Rg5+ {[%emt 0:06:41]} 34. Kf4 {[%emt 0:01:29]} Rxg2 {[%emt 0:00:44]} 35. Kxe4 {[%emt 0:00:07]} Rg6 {[%emt 0:00:34]} 36. f4 {[%emt 0:01:08]} Bf6 {[%emt 0:01:40]} 37. Bc5 {[%emt 0:02:16] [#]} Rg2 $3 {[%emt 0:42:10][%mdl 512] Weighted Error Value: White=0.67/Black=0.17 (very precise) .  Mistake:       	White=5     	Black=1      Inaccurate:     	White=1     	Black=1      OK:         	White=6     	Black=11     Best:        	White=1     	---        Strong:       	---       	Black=1      Brilliant:      	---       	Black=2} 0-1